bitfinex-derivatives/quotes_ETHF0:USTF0_20250616
["timestamp","ask_amount","ask_price","bid_price","bid_amount"]
[1750079934298,0.76587,2611.1,2610.7,5.12274]
[1750079934493,6.93091,2610.9,2610.8,1.40694]
[1750079934884,11.65227868,2610.9,2610.8,0.76594]
[1750079936492,10.88636868,2610.9,2610.8,0.76594]
[1750079936693,4.09486868,2611.0,2610.9,0.76591]
[1750079936897,33.84486868,2611.0,2610.9,0.76591]
[1750079937103,34.61074868,2611.0,2610.9,0.76591]
[1750079937794,8.06854868,2611.0,2610.9,0.76591]
[1750079937995,37.81354868,2611.0,2610.9,0.76591]
[1750079941093,1.91479,2610.9,2610.5,3.81072277]
[1750079941295,1.91479,2610.9,2610.4,0.06737406]
[1750079941296,0.76616,2610.1,2610.0,0.76615]
[1750079941497,31.68681868,2610.1,2610.0,0.76615]
[1750079942095,30.92066868,2610.1,2609.8,8.2796]
[1750079942403,4.86107868,2609.9,2609.8,2.64583]
[1750079942590,28.47407868,2609.9,2609.8,2.64583]
[1750079942796,28.47407868,2609.9,2609.8,9.04583]
[1750079942993,4.86107868,2609.9,2609.8,9.04583]
[1750079943290,28.47107868,2609.9,2609.8,9.0985004]
[1750079943892,28.47107868,2609.9,2609.8,7.8360004]
[1750079944099,28.47107868,2609.9,2609.8,6.4526704]
[1750079944293,28.47107868,2609.9,2609.4,1.91589]
[1750079944294,0.76632,2609.5,2609.4,0.76633]
[1750079944498,4.09486868,2609.8,2609.3,5.12376]
[1750079944701,24.40228,2609.7,2609.6,0.76629]
[1750079945200,0.76632,2609.6,2609.5,0.7663]
[1750079945401,4.86118868,2609.6,2609.5,0.7663]
[1750079945806,4.09486868,2609.6,2609.5,0.7663]
[1750079945993,23.634,2609.8,2609.7,0.76627]
[1750079946599,23.634,2609.8,2609.7,2.07887]
[1750079948004,10.26186868,2610.3,2609.8,1.91558]
[1750079948210,10.26186868,2610.3,2610.1,0.76615]
[1750079948211,6.9331,2610.3,2610.1,0.76615]
[1750079948507,23.63574372,2610.2,2610.1,0.76615]
[1750079948701,23.63574372,2610.2,2610.1,2.01465]
[1750079949304,28.4967324,2610.2,2610.1,2.01465]
[1750079949497,27.7306124,2610.2,2609.8,0.06737406]
[1750079949703,4.09486868,2609.9,2609.8,0.06737406]
[1750079950005,27.73586868,2609.9,2609.8,0.06737406]
[1750079950406,4.09486868,2609.9,2609.8,0.06737406]
[1750079950606,28.50807868,2609.9,2609.8,0.83359406]
[1750079951410,28.50807868,2609.9,2609.8,0.06737406]
[1750079951614,4.86107868,2609.9,2609.8,0.83361406]
[1750079951811,28.50607868,2609.9,2609.8,0.83361406]
[1750079953009,24.41121,2609.9,2609.8,0.83361406]
[1750079953809,0.7662,2610.0,2609.9,0.76618]
[1750079954010,24.3962,2610.0,2609.9,2.02788]
[1750079954210,23.63,2610.0,2609.9,2.67538]
[1750079954511,24.39618,2610.0,2609.9,2.67538]
[1750079955613,0.00574372,2610.2,2609.9,1.9092]
[1750079955814,23.634,2610.1,2610.0,0.76618]
[1750079956114,23.634,2610.1,2610.0,2.09128]
[1750079956715,24.40015,2610.1,2610.0,2.09128]
[1750079956914,24.39315,2610.1,2610.0,2.09128]
[1750079957411,24.39315,2610.1,2610.0,0.76618]
[1750079957619,0.76621,2609.9,2609.8,0.83358406]
[1750079959123,0.76621,2609.9,2609.8,0.06737406]
[1750079959824,7.56751,2609.9,2609.8,0.06737406]
[1750079960210,7.56751,2609.9,2609.8,0.83361406]
[1750079961516,1.40051,2609.9,2609.8,0.83361406]
[1750079961727,25.01551,2609.9,2609.8,0.83361406]
[1750079963040,31.18951,2609.9,2609.8,0.83361406]
[1750079963228,30.4233,2609.9,2609.8,0.83361406]
[1750079963427,6.9392,2610.0,2609.9,0.76621]
[1750079963723,30.5492,2610.0,2609.9,0.76621]
[1750079964530,0.7662,2610.0,2609.9,0.76621]
[1750079964728,30.5492,2610.0,2609.9,0.76621]
[1750079966434,0.76621,2609.9,2609.8,4.06e-06]
[1750079966642,2.00521,2609.9,2609.8,4.06e-06]
[1750079966834,7.00521,2609.9,2609.8,4.06e-06]
[1750079967235,0.7664,2609.3,2609.0,5.6942]
[1750079967434,23.643,2609.2,2609.1,1.99624]
[1750079967644,23.64,2609.2,2609.1,1.2298]
[1750079967941,23.64,2609.2,2609.1,1.99624]
[1750079968739,24.40641,2609.2,2609.1,1.99624]
[1750079968937,23.64,2609.2,2609.1,1.99624]
[1750079969236,24.40641,2609.2,2609.1,1.2298]
[1750079969544,0.76644,2609.1,2609.0,6.75624277]
[1750079969833,0.76644,2609.1,2609.0,5.98979277]
[1750079970039,24.40643,2609.2,2609.0,2.02307]
[1750079970546,0.76634,2609.5,2609.4,0.76633]
[1750079970733,29.819,2609.5,2609.1,2.84159277]
[1750079971042,0.76638,2609.3,2609.2,2.08259]
[1750079971941,0.76637,2609.4,2609.3,0.76638]
[1750079972137,6.174,2609.5,2609.4,0.76635]
[1750079972440,30.58432,2609.5,2609.4,0.76635]
[1750079972830,29.818,2609.5,2609.4,0.76635]
[1750079973034,29.818,2609.5,2609.4,2.12525]
[1750079973431,29.818,2609.5,2609.2,1.52539277]
[1750079973642,0.76644,2609.1,2609.0,1.52539277]
[1750079973949,0.76647,2609.0,2608.9,0.76649]
[1750079974243,3.9742,2609.3,2608.9,1.91625]
[1750079974442,29.865,2609.2,2609.1,0.76644]
[1750079974638,0.6219,2609.6,2609.3,0.76637]
[1750079974831,29.87,2609.5,2609.3,0.76635]
[1750079975035,0.76636,2609.4,2609.3,0.76635]
[1750079975238,4.86493976,2609.4,2609.3,0.76635]
[1750079975543,4.09857976,2609.4,2609.3,0.76635]
[1750079975847,4.86492976,2609.4,2609.3,0.76635]
[1750079976543,0.76634,2609.5,2609.4,0.76635]
[1750079976743,30.63834,2609.5,2609.4,0.76635]
[1750079976940,0.76632,2609.5,2609.4,0.76635]
[1750079977243,11.66179976,2609.6,2609.5,0.76632]
[1750079977438,0.6219,2609.6,2609.5,0.76632]
[1750079977747,10.14907,2609.7,2609.6,0.76629]
[1750079978147,33.83807,2609.7,2609.6,0.76629]
[1750079979044,3.2078,2609.7,2609.6,0.76629]
[1750079979242,0.6765,2609.9,2609.8,0.76623]
[1750079979552,4.61487,2610.1,2609.7,2.57035]
[1750079979757,24.45018,2610.0,2609.7,1.9255]
[1750079980049,23.684,2610.0,2609.9,0.76618]
[1750079980546,23.684,2610.0,2609.8,1.2708]
[1750079980547,0.76622,2609.9,2609.8,0.76622]
[1750079980748,28.55576976,2610.0,2609.9,0.76621]
[1750079981149,0.76621,2609.9,2609.8,0.76621]
[1750079981744,23.691,2610.0,2609.9,0.76621]
[1750079981940,3.97396,2610.1,2610.0,0.76618]
[1750079982254,24.46716,2610.1,2610.0,0.76618]
[1750079982650,0.76616,2610.1,2610.0,0.76618]
[1750079982852,0.76619,2610.0,2609.9,0.76618]
[1750079983153,0.76621,2609.9,2609.8,2.00782]
[1750079983344,0.76621,2609.9,2609.8,0.76622]
[1750079983544,0.76619,2610.0,2609.9,0.76619]
[1750079984150,28.56973976,2610.1,2609.7,4.09575277]
[1750079984452,4.86473976,2610.1,2610.0,0.76617]
[1750079984653,28.56873976,2610.1,2610.0,0.76617]
[1750079985152,0.76618,2610.0,2609.9,0.76618]
[1750079985947,27.80257976,2610.1,2609.9,0.76618]
[1750079986151,28.56872976,2610.1,2610.0,0.76616]
[1750079986446,28.56869976,2610.1,2610.0,0.76613]
[1750079986651,0.76615,2610.0,2609.9,0.76614]
[1750079986854,4.86469976,2610.1,2610.0,0.76613]
[1750079987055,7.61964372,2610.2,2610.1,0.7661]
[1750079987249,31.31164372,2610.2,2610.1,0.7661]
[1750079987448,0.76612,2610.1,2610.0,0.76612]
[1750079987649,4.86469976,2610.1,2610.0,0.76612]
[1750079989855,28.53869976,2610.1,2610.0,0.76612]
[1750079990052,28.53869976,2610.1,2610.0,1.99172]
[1750079990355,24.4391,2610.1,2610.0,1.99172]
[1750079990751,24.4391,2610.1,2610.0,2.05909406]
[1750079991653,23.673,2610.1,2610.0,2.05909406]
[1750079992052,24.4391,2610.1,2610.0,2.05909406]
[1750079995457,23.673,2610.1,2610.0,2.05909406]
[1750079996051,24.4391,2610.1,2610.0,2.05909406]
[1750079996252,0.00574372,2610.2,2610.1,0.7661]
[1750079996459,0.00574372,2610.2,2610.1,2.7101]
[1750079996757,0.00574372,2610.2,2610.1,10.63549277]
[1750079998060,23.642,2610.4,2610.3,0.76604]
[1750079998262,23.642,2610.4,2610.3,3.97384]
[1750079998458,24.40802,2610.4,2610.3,3.2078]
[1750079998656,0.76607,2610.2,2610.1,6.4]
[1750079998859,4.86464976,2610.2,2610.1,6.4]
[1750079999158,4.86464976,2610.2,2610.1,7.1661]
[1750079999561,4.86464976,2610.2,2610.1,0.7661]
[1750079999760,0.7661,2610.1,2610.0,0.83348406]
[1750079999961,24.4211,2610.1,2610.0,0.83348406]
[1750080000163,0.76609,2610.2,2610.1,0.7661]
[1750080000360,23.65,2610.2,2610.1,0.7661]
[1750080000563,23.65,2610.2,2610.1,2.7516]
[1750080001357,24.41607,2610.2,2610.1,2.7516]
[1750080001662,0.7661,2610.1,2610.0,0.06737406]
[1750080001863,0.7661,2610.1,2610.0,0.83350406]
[1750080003363,0.7661,2610.1,2610.0,0.06737406]
[1750080003765,0.7661,2610.1,2609.9,0.00574372]
[1750080003766,0.76613,2610.0,2609.9,0.00574372]
[1750080003958,4.86470976,2610.0,2609.9,0.00574372]
[1750080004153,11.09920976,2610.0,2609.9,0.00574372]
[1750080004354,0.76628,2609.5,2609.4,2.90534081]
[1750080004568,0.76628,2609.5,2609.4,1.52606081]
[1750080004766,0.76631,2609.4,2609.3,2.29239081]
[1750080005068,1.40301,2609.4,2609.3,2.29239081]
[1750080006365,0.6367,2609.4,2609.3,2.29239081]
[1750080007570,5.50158976,2609.4,2609.3,1.52606081]
[1750080007767,0.76634,2609.3,2609.2,5.50020081]
[1750080007966,0.76634,2609.3,2609.2,3.97414]
[1750080007967,24.42034,2609.3,2609.2,3.97414]
[1750080008469,23.654,2609.3,2609.2,3.97414]
[1750080008862,24.42034,2609.3,2609.2,3.97414]
[1750080009059,24.42034,2609.3,2609.2,3.2078]
[1750080009263,24.42034,2609.3,2609.2,3.97417]
[1750080010567,24.42034,2609.3,2609.2,0.76637]
[1750080010767,24.40634,2609.3,2609.2,0.76637]
[1750080011773,23.64,2609.3,2609.0,1.52606081]
[1750080011964,0.7664,2609.1,2609.0,0.7664]
[1750080012672,0.76639,2609.2,2609.1,0.76637]
[1750080013274,24.40636,2609.3,2609.2,0.76637]
[1750080015874,24.40634,2609.3,2609.2,0.76637]
[1750080016577,23.611,2609.4,2609.3,0.76634]
[1750080016769,23.611,2609.4,2609.3,2.04764]
[1750080016969,24.37727,2609.6,2609.5,0.76625]
[1750080017276,24.38627,2609.6,2609.5,0.76625]
[1750080017774,23.62,2609.6,2609.5,0.76625]
[1750080017973,0.6414,2609.7,2609.6,0.76625]
[1750080018168,6.96121,2609.8,2609.7,0.76622]
[1750080018379,30.57921,2609.8,2609.7,0.76622]
[1750080019174,0.76621,2609.8,2609.7,0.76622]
[1750080019374,24.38421,2609.8,2609.7,0.76622]
[1750080019580,24.37821,2609.8,2609.7,0.76622]
[1750080020078,24.37821,2609.8,2609.7,0.83359406]
[1750080021076,24.37821,2609.8,2609.7,0.06737406]
[1750080021375,24.37821,2609.8,2609.7,0.83359406]
[1750080025787,0.76621,2609.8,2609.7,0.83359406]
[1750080026090,24.34521,2609.8,2609.7,0.83359406]
[1750080028682,24.34521,2609.8,2609.7,2.17589406]
[1750080028890,23.57,2609.9,2609.7,1.40967406]
[1750080029091,23.57,2609.9,2609.8,1.3169]
[1750080029387,24.33619,2609.9,2609.8,2.08307]
[1750080029593,0.76619,2609.9,2609.8,2.08307]
[1750080029796,24.32719,2609.9,2609.8,2.08307]
[1750080029988,0.76619,2609.9,2609.8,2.08307]
[1750080030798,24.32715,2610.0,2609.9,0.76616]
[1750080030989,24.32715,2610.0,2609.9,2.08306]
[1750080031488,24.32715,2610.0,2609.9,0.76616]
[1750080035906,23.561,2610.0,2609.9,0.76616]
[1750080036203,24.32713,2610.0,2609.9,0.76616]
[1750080036402,24.32713,2610.0,2609.9,0.83353406]
[1750080039705,0.76613,2610.0,2609.9,0.83353406]
[1750080039908,24.30213,2610.0,2609.9,0.83353406]
[1750080041004,11.69460976,2610.1,2609.9,0.06737406]
[1750080041202,0.76608,2610.2,2610.1,0.76607]
[1750080041507,1.44207,2610.3,2610.2,0.76607]
[1750080041806,24.97807,2610.3,2610.2,0.76607]
[1750080042002,1.44207,2610.3,2610.2,0.76607]
[1750080042503,24.212,2610.3,2610.2,0.76607]
[1750080043001,0.676,2610.3,2610.2,0.76607]
[1750080043202,0.00574372,2610.4,2610.3,0.76605]
[1750080045202,0.00574372,2610.4,2610.3,3.97385]
[1750080045403,3.97369,2610.9,2610.4,1.91502]
[1750080045607,24.93021,2610.8,2610.7,0.76593]
[1750080045807,0.76594,2610.7,2610.5,1.9454]
[1750080046113,24.93022,2610.8,2610.7,0.76593]
[1750080046511,1.39622,2610.8,2610.7,0.76593]
[1750080046712,24.93022,2610.8,2610.7,0.76593]
[1750080046911,0.76595,2610.7,2610.6,0.76593]
[1750080047309,29.02879976,2610.8,2610.7,0.76593]
[1750080048916,5.49479976,2610.8,2610.7,0.76593]
[1750080049311,29.02679976,2610.8,2610.7,0.76593]
[1750080049516,5.49479976,2610.8,2610.7,0.76593]
[1750080049714,24.1623,2610.8,2610.7,0.76593]
[1750080050425,24.1613,2610.8,2610.7,5.29623]
[1750080050718,0.00574372,2611.0,2610.9,0.76587]
[1750080051317,0.00574372,2611.0,2610.9,3.61384968]
[1750080051521,6.7848,2611.4,2611.3,0.76575]
[1750080051921,24.1648,2611.4,2611.3,0.76575]
[1750080052116,0.6338,2611.4,2611.3,0.76575]
[1750080052518,1.39952,2611.4,2611.3,0.76575]
[1750080052720,0.76578,2611.2,2611.1,3.2078]
[1750080052920,27.62957976,2611.2,2610.7,6.71546374]
[1750080053223,4.86442976,2611.0,2610.9,0.76587]
[1750080054126,4.09857976,2611.0,2610.9,0.76587]
[1750080054421,0.76583,2611.1,2611.0,0.76584]
[1750080055221,0.76583,2611.1,2610.8,1.91475]
[1750080055222,0.76589,2610.9,2610.7,4.57777406]
[1750080055417,4.86446976,2610.9,2610.8,0.7659]
[1750080056122,1.43845,2611.0,2610.9,0.76587]
[1750080062125,24.96545,2611.0,2610.9,0.76587]
[1750080066031,24.96545,2611.0,2610.9,0.83324406]
[1750080067333,24.96545,2611.0,2610.9,0.06737406]
[1750080067928,26.27345,2611.0,2610.9,0.83324406]
[1750080068935,24.96545,2611.0,2610.9,0.06737406]
[1750080069236,24.96545,2611.0,2610.9,0.83324406]
[1750080069439,24.96545,2611.0,2610.9,0.06737406]
[1750080069633,0.76596,2610.7,2610.6,0.76594]
[1750080069833,28.38953976,2610.7,2610.6,0.76594]
[1750080074137,0.76596,2610.6,2610.5,0.77170372]
[1750080074342,1.38096,2610.6,2610.5,0.77170372]
[1750080075836,1.38096,2610.6,2610.5,0.00574372]
[1750080076537,0.76602,2610.4,2610.3,3.2078]
[1750080076735,30.41802,2610.4,2610.3,3.2078]
[1750080076938,30.41802,2610.4,2609.8,2.5716]
[1750080076939,0.7661,2610.1,2610.0,1.52547968]
[1750080077139,0.76613,2610.0,2609.9,0.76616]
[1750080077345,1.44263,2610.0,2609.9,0.76616]
[1750080079342,0.76616,2609.9,2609.8,2.5716]
[1750080080550,0.76619,2609.8,2609.7,3.21354372]
[1750080080841,24.29419,2609.8,2609.7,3.21354372]
[1750080083044,1.91556,2609.7,2609.3,1.52547968]
[1750080083250,0.76634,2609.3,2609.2,0.6598]
[1750080083449,24.29334,2609.3,2609.2,0.6598]
[1750080083942,0.76637,2609.2,2609.1,3.2078]
[1750080084147,5.50304976,2609.2,2609.1,3.2078]
[1750080084949,5.50304976,2609.2,2609.0,2.6524]
[1750080084950,0.7664,2609.1,2609.0,2.6524]
[1750080085844,0.84856884,2609.1,2609.0,2.6524]
[1750080086446,0.84856884,2609.1,2609.0,3.41883]
[1750080086753,0.7664,2609.1,2609.0,3.41883]
[1750080086950,0.86916491,2609.1,2609.0,2.6524]
[1750080087650,0.86916491,2609.1,2609.0,3.41883]
[1750080087845,0.7664,2609.1,2609.0,3.41883]
[1750080088046,0.7664,2609.1,2609.0,2.6524]
[1750080088047,0.90620016,2609.1,2609.0,2.6524]
[1750080088445,0.90620016,2609.1,2609.0,3.41883]
[1750080088653,10.10012,2609.5,2609.1,1.91599]
[1750080088850,6.126,2609.5,2609.4,4.86488976]
[1750080089045,0.03703529,2609.5,2609.4,4.86488976]
[1750080089252,0.03703529,2609.5,2609.4,6.81808976]
[1750080089847,0.80331529,2609.5,2609.4,1.9532]
[1750080092362,0.80331529,2609.5,2609.4,2.71951]
[1750080092770,0.03703529,2609.5,2609.4,6.81808976]
[1750080093068,0.76615,2610.0,2609.9,0.76616]
[1750080093457,0.76615,2610.0,2609.9,0.83353406]
[1750080093664,0.76615,2610.0,2609.9,2.10413406]
[1750080094271,0.80323101,2610.0,2609.9,2.10413406]
[1750080094767,0.03708101,2610.0,2609.9,2.10413406]
[1750080095872,0.80321101,2610.0,2609.9,2.10413406]
[1750080096371,0.03708101,2610.0,2609.9,2.10413406]
[1750080096866,0.80321101,2610.0,2609.9,2.10413406]
[1750080097074,0.03708101,2610.0,2609.9,2.10413406]
[1750080098968,0.03708101,2610.0,2609.9,6.20271382]
[1750080099168,0.00574372,2610.2,2610.1,0.76611]
[1750080099368,0.00574372,2610.2,2610.1,4.86468976]
[1750080099869,0.00574372,2610.2,2610.1,6.20808976]
[1750080100571,0.00574372,2610.2,2610.1,12.60808976]
[1750080102668,0.00574372,2610.2,2610.1,8.50951]
[1750080103270,0.0470427,2610.2,2610.1,8.50951]
[1750080104166,6.126,2610.6,2610.5,0.76599]
[1750080104477,6.126,2610.6,2610.5,0.71318266]
[1750080104676,6.89196,2610.6,2610.5,0.71318266]
[1750080105280,0.76602,2610.4,2610.3,3.97954372]
[1750080105474,0.76602,2610.4,2610.3,3.21354372]
[1750080106069,0.76602,2610.4,2610.3,0.00574372]
[1750080106466,2.08492,2610.4,2610.3,0.00574372]
[1750080107581,30.41802,2610.4,2610.3,0.77179372]
[1750080109981,30.45530635,2610.4,2610.3,0.77179372]
[1750080110273,29.68928635,2610.4,2610.3,0.77179372]
[1750080110479,23.56328635,2610.4,2610.3,0.77179372]
[1750080110680,24.32930635,2610.4,2610.3,0.83916778]
[1750080112282,24.32930635,2610.4,2610.3,0.07311778]
[1750080112478,24.32930635,2610.4,2610.3,0.83916778]
[1750080115572,24.32930635,2610.4,2610.3,0.07311778]
[1750080115973,26.30700635,2610.4,2610.3,0.07311778]
[1750080116174,1.91517,2610.3,2609.9,0.76615]
[1750080116380,4.86471976,2610.0,2609.9,0.76615]
[1750080116584,28.38971976,2610.0,2609.9,0.76615]
[1750080117085,28.42700611,2610.0,2609.9,0.76615]
[1750080118886,0.7662,2609.8,2609.7,6.35947968]
[1750080119080,24.32748635,2609.8,2609.7,5.60022]
[1750080119380,23.56128635,2609.8,2609.7,4.64232]
[1750080120283,24.32748635,2609.8,2609.7,4.64232]
[1750080120487,29.07546611,2609.8,2609.7,3.2078]
[1750080120982,0.76625,2609.6,2609.5,2.90794968]
[1750080121177,24.32753635,2609.6,2609.5,2.29174968]
[1750080122873,28.42611611,2609.6,2609.4,2.17527968]
[1750080123077,28.42611611,2609.6,2609.5,0.76628]
[1750080123987,23.56128635,2609.6,2609.5,0.76628]
[1750080124385,23.56128635,2609.6,2609.5,2.01358]
[1750080124983,23.56128635,2609.6,2609.5,3.60643374]
[1750080125178,0.03728635,2609.6,2609.5,7.7050135]
[1750080125688,0.03728635,2609.6,2609.5,6.17953382]
[1750080126386,0.03728635,2609.6,2609.5,2.08095406]
[1750080127990,0.03728635,2609.6,2609.5,4.36917359]
[1750080133891,27.399,2610.0,2609.9,0.76617]
[1750080134389,3.2078,2610.0,2609.9,0.76617]
[1750080134585,1.39008,2610.2,2610.1,0.76611]
[1750080134792,24.91508,2610.2,2610.1,0.76611]
[1750080136894,24.149,2610.2,2610.1,0.76611]
[1750080137088,0.624,2610.2,2610.1,0.76611]
[1750080138092,1.39008,2610.2,2610.1,0.76611]
[1750080139595,0.624,2610.2,2610.1,0.76611]
[1750080140292,6.124,2610.3,2610.2,0.76608]
[1750080140495,29.646,2610.3,2610.2,0.76608]
[1750080140893,3.2078,2610.5,2610.4,0.76602]
[1750080141086,26.7298,2610.5,2610.4,0.76602]
[1750080141288,27.49579,2610.5,2610.4,0.76602]
[1750080141491,26.7298,2610.5,2610.4,0.76602]
[1750080142099,3.2078,2610.5,2610.4,0.76602]
[1750080142294,0.6318,2610.6,2610.5,0.76599]
[1750080142495,24.1538,2610.6,2610.5,0.76599]
[1750080143297,24.1528,2610.6,2610.5,0.76599]
[1750080143700,24.91876,2610.6,2610.5,0.76599]
[1750080144395,24.1528,2610.6,2610.5,0.76599]
[1750080144701,24.91876,2610.6,2610.5,0.76599]
[1750080145499,29.01733976,2610.6,2610.5,0.76599]
[1750080146597,0.76602,2610.4,2610.3,5.2469]
[1750080146797,4.86459976,2610.4,2610.3,0.766]
[1750080152704,0.76608,2610.2,2610.1,1.02517406]
[1750080153003,37.70845976,2610.2,2610.1,1.02517406]
[1750080153507,39.57205976,2610.2,2610.1,1.02517406]
[1750080154207,4.86477976,2609.8,2609.7,0.7662]
[1750080154396,28.38177976,2609.8,2609.7,0.7662]
[1750080154803,32.10050976,2609.8,2609.4,4.73619775]
[1750080155003,4.86485976,2609.5,2609.4,3.97408]
[1750080155203,28.38185976,2609.5,2609.4,3.97408]
[1750080155903,23.517,2609.5,2609.4,0.76628]
[1750080156317,23.517,2609.5,2609.4,3.97408]
[1750080156808,0.76623,2609.7,2609.6,0.76625]
[1750080157002,24.28423,2609.7,2609.6,0.76625]
[1750080157995,23.518,2609.7,2609.6,0.76625]
[1750080159398,24.28422,2609.7,2609.6,0.76625]
[1750080160708,6.11834953,2610.4,2609.5,4.76547976]
[1750080160709,4.09857976,2610.3,2609.5,4.76547976]
[1750080160913,30.40411,2610.2,2610.1,0.76608]
[1750080161112,6.88611,2610.2,2610.1,0.76608]
[1750080161305,29.639,2610.2,2610.1,0.76608]
[1750080161509,29.639,2610.2,2610.1,0.83345406]
[1750080162110,6.88602,2610.5,2610.4,0.76602]
[1750080162315,31.05792,2610.5,2610.4,0.76602]
[1750080163312,6.7729,2610.5,2610.4,0.76602]
[1750080163609,3.2078,2610.7,2610.3,6.01367976]
[1750080163809,3.2078,2610.7,2610.6,0.76596]
[1750080164014,26.7258,2610.7,2610.6,0.76596]
[1750080165209,0.77166372,2610.8,2610.7,0.76593]
[1750080165515,24.28866372,2610.8,2610.7,0.76593]
[1750080166213,0.00574372,2610.8,2610.7,0.76593]
[1750080166417,23.52174372,2610.8,2610.7,0.76593]
[1750080166613,0.00574372,2610.8,2610.7,0.76593]
[1750080167015,0.00574372,2610.8,2610.7,4.86450976]
[1750080167417,0.00574372,2610.8,2610.7,6.39290751]
[1750080167719,0.00574372,2610.8,2610.7,7.64480751]
[1750080167917,6.12,2611.2,2611.1,0.76581]
[1750080168211,5.19169685,2611.4,2611.3,0.76576]
[1750080168420,28.70569685,2611.4,2611.3,0.76576]
[1750080168718,10.09251,2611.5,2611.4,0.76573]
[1750080168915,33.60651,2611.5,2611.4,0.76573]
[1750080169615,0.76575,2611.4,2611.3,0.76573]
[1750080170923,33.60652,2611.5,2611.4,0.76573]
[1750080171416,32.8408,2611.5,2611.4,0.76573]
[1750080171617,33.6025,2611.5,2611.4,0.76573]
[1750080172119,32.8368,2611.5,2611.4,0.76573]
[1750080172420,0.00574372,2611.7,2611.6,0.76567]
[1750080172624,30.40038372,2611.7,2611.6,0.76567]
[1750080172922,6.12474372,2611.7,2611.6,0.76567]
[1750080173121,0.00574372,2611.7,2611.6,0.76567]
[1750080173325,23.51574372,2611.7,2611.6,1.41207]
[1750080173513,0.00574372,2611.7,2611.6,1.41207]
[1750080173825,24.28138372,2611.7,2611.6,1.41207]
[1750080174723,28.37996348,2611.7,2611.6,1.41207]
[1750080174919,27.61432348,2611.7,2611.4,3.2078]
[1750080175125,28.37999348,2611.7,2611.6,0.76567]
[1750080179036,0.7657,2611.6,2611.5,0.76567]
[1750080182031,0.00574372,2611.7,2611.6,0.76567]
[1750080182740,0.00574372,2611.7,2611.6,1.41157]
[1750080184436,6.7329,2612.2,2612.1,0.76552]
[1750080184629,0.76546,2612.4,2612.3,0.76546]
[1750080184829,0.622,2612.6,2612.5,0.7654]
[1750080185034,3.2078,2612.9,2612.8,0.76532]
[1750080185233,3.8396,2613.5,2612.8,1.91327]
[1750080185539,3.8396,2613.5,2613.3,0.76517]
[1750080185540,0.62774372,2613.4,2613.3,0.76517]
[1750080185936,24.12674372,2613.4,2613.3,0.76517]
[1750080186138,0.00574372,2613.4,2613.3,0.76517]
[1750080186441,0.04289012,2613.4,2613.3,8.07154976]
[1750080186943,0.04289012,2613.4,2613.3,3.97297]
[1750080187535,0.05848275,2613.4,2613.3,5.29667]
[1750080188042,0.05848275,2613.4,2613.3,11.40667]
[1750080193645,0.09561965,2613.4,2613.3,11.40667]
[1750080194439,0.08987593,2613.4,2613.3,19.90386787]
[1750080194647,6.7334,2614.1,2613.8,0.74939787]
[1750080194648,0.76498,2614.0,2613.8,0.74939787]
[1750080194848,0.76498,2614.0,2613.9,0.76499]
[1750080195542,0.76499,2613.9,2613.8,7.165]
[1750080195745,0.76499,2613.9,2613.8,6.4]
[1750080196146,6.108,2613.9,2613.3,3.2078]
[1750080196445,0.76514,2613.4,2613.3,3.2078]
[1750080199342,0.76514,2613.4,2613.3,3.97297]
[1750080199546,0.76514,2613.4,2613.3,3.2078]
[1750080199745,35.18699787,2613.7,2613.4,0.76511]
[1750080199746,0.76514,2613.5,2613.4,0.76511]
[1750080200352,0.80220483,2613.5,2613.4,0.76511]
[1750080200549,0.76514,2613.4,2613.3,3.97295]
[1750080200752,0.76514,2613.4,2613.3,3.2078]
[1750080201145,1.43694,2613.4,2613.3,3.2078]
[1750080201341,2.67054,2613.4,2613.3,3.2078]
[1750080201653,2.72327903,2613.4,2613.3,3.2078]
[1750080202352,0.76517,2613.3,2613.2,0.4201]
[1750080202553,1.47100903,2613.3,2613.2,0.4201]
[1750080202847,1.47100903,2613.3,2612.9,10.88934372]
[1750080202848,0.76526,2613.0,2612.9,3.21354372]
[1750080203045,0.76526,2613.0,2612.9,3.97883372]
[1750080203448,0.76526,2613.0,2612.9,3.21354372]
[1750080203752,0.81799903,2613.0,2612.9,3.21354372]
[1750080204449,10.6675969,2613.0,2612.9,3.21354372]
[1750080204754,10.6675969,2613.0,2612.5,3.97318]
[1750080204755,0.76537,2612.6,2612.5,3.97318]
[1750080205653,0.81810903,2612.6,2612.5,3.97318]
[1750080207158,0.76537,2612.6,2612.5,3.97318]
[1750080207454,0.85534002,2612.6,2612.5,3.97318]
[1750080207754,24.25108372,2612.8,2612.7,0.65986194]
[1750080208354,0.76537,2612.7,2612.6,0.76536]
[1750080208752,0.76537,2612.7,2612.5,3.97318]
[1750080208957,0.76537,2612.6,2612.5,3.97318]
[1750080209253,0.76537,2612.6,2612.5,3.2078]
[1750080209552,0.76537,2612.6,2612.5,3.9732]
[1750080210555,1.3119,2612.7,2612.6,0.76537]
[1750080210556,2.07727,2612.7,2612.6,0.76537]
[1750080210753,1.3119,2612.7,2612.6,0.76537]
[1750080210961,0.00574372,2612.8,2612.7,0.76534]
[1750080211260,23.48474372,2612.8,2612.7,0.76534]
[1750080212556,23.48574372,2612.8,2612.7,0.76534]
[1750080213561,0.00574372,2612.8,2612.7,0.76534]
[1750080213761,0.00574372,2612.8,2612.7,1.44074]
[1750080214457,0.07311778,2612.8,2612.7,1.44074]
[1750080215465,0.00574372,2612.8,2612.7,1.44074]
[1750080215764,0.77106372,2612.8,2612.7,0.76534]
[1750080216163,0.00574372,2612.8,2612.7,0.76534]
[1750080219667,0.00574372,2612.8,2612.5,0.76537]
[1750080219668,0.76538,2612.6,2612.5,0.76537]
[1750080219967,0.7654,2612.5,2612.4,1.18571]
[1750080220168,24.2724,2612.5,2612.4,1.18571]
[1750080221162,24.2724,2612.5,2612.4,0.4203]